bitfinex/quotes_SOLUSD_20241001
["timestamp","ask_amount","ask_price","bid_price","bid_amount"]
[1727788455647,6.4169,155.84,155.8,6.4184]
[1727788457632,6.4177,155.82,155.78,26.4191]
[1727788457928,6.4169,155.84,155.8,6.4184]
[1727788459619,6.4164,155.85,155.8,6.4184]
[1727788461219,39.811984,155.91,155.81,1.2833707]
[1727788461415,39.811984,155.91,155.82,6.4175]
[1727788461632,39.811984,155.91,155.83,1.28330881]
[1727788462037,39.811984,155.91,155.82,6.4175]
[1727788462224,39.811984,155.91,155.83,1.28332134]
[1727788462424,39.811984,155.91,155.82,6.4175]
[1727788462729,39.811984,155.91,155.83,1.28332457]
[1727788463120,6.416,155.86,155.83,1.28332457]
[1727788463321,6.4156,155.87,155.83,7.70042457]
[1727788464632,6.4156,155.87,155.83,6.4171]
[1727788465328,6.4156,155.87,155.82,16.0436]
[1727788465507,6.416,155.86,155.82,22.4611]
[1727788467236,1.60413456,155.85,155.78,26.419]
[1727788467620,1.60413456,155.85,155.79,6.4188]
[1727788467621,6.4175,155.83,155.79,6.4188]
[1727788478244,6.4183,155.81,155.78,20.0]
[1727788478442,16.0429,155.84,155.77,15.735]
[1727788478646,1.6045007,155.83,155.77,15.735]
[1727788478832,6.4181,155.81,155.77,15.735]
[1727788479144,6.418,155.82,155.78,6.4192]
[1727788479456,6.418,155.82,155.77,22.1546]
[1727788479949,6.4169,155.84,155.79,22.4653]
[1727788480248,23.776884,155.87,155.77,15.735]
[1727788480549,6.4161,155.86,155.81,6.418]
[1727788480759,6.4161,155.86,155.82,1.28336272]
[1727788481548,6.4148,155.89,155.82,16.75956272]
[1727788481740,12.73301016,155.93,155.82,35.62434281]
[1727788481741,6.2332,155.93,155.82,35.62434281]
[1727788481928,6.2332,155.93,155.82,34.34098009]
[1727788482129,6.4144,155.9,155.85,6.416]
[1727788482435,6.4144,155.9,155.86,0.93480419]
[1727788482742,6.4144,155.9,155.86,7.35070419]
[1727788482950,6.4144,155.9,155.85,1.28301861]
[1727788483153,25.38065727,155.93,155.85,6.4162]
[1727788483453,6.4148,155.89,155.84,16.0413]
[1727788483747,6.4148,155.89,155.84,22.458]
[1727788484259,6.4153,155.88,155.84,16.0413]
[1727788484639,6.4147,155.89,155.84,22.4579]
[1727788487641,6.4147,155.89,155.84,16.0413]
[1727788487843,6.4147,155.89,155.85,6.4162]
[1727788488029,6.4144,155.9,155.85,6.4162]
[1727788488350,6.414,155.91,155.86,7.69882066]
[1727788488551,6.414,155.91,155.84,16.0413]
[1727788488552,16.0319,155.94,155.87,1.28290171]
[1727788488750,6.4136,155.92,155.87,7.69820171]
[1727788489443,6.4139,155.91,155.87,7.69820171]
[1727788490155,6.4139,155.91,155.87,6.4153]
[1727788494557,6.4151,155.89,155.85,6.4161]
[1727788494756,6.4145,155.9,155.86,6.416]
[1727788495634,16.0319,155.94,155.84,32.65958009]
[1727788495831,6.4136,155.92,155.88,6.4151]
[1727788496031,6.4136,155.92,155.89,1.2827763]
[1727788498245,6.4132,155.93,155.89,7.6974763]
[1727788498547,16.0293,155.97,155.89,1.2827763]
[1727788498761,6.4128,155.94,155.9,6.4143]
[1727788498948,6.4128,155.94,155.91,1.28259502]
[1727788499976,6.4126,155.95,155.91,1.28259502]
[1727788500161,63.6958,156.0,155.91,1.28259502]
[1727788500162,31.6432,156.0,155.91,1.28259502]
[1727788500337,31.6432,156.0,155.91,16.0346]
[1727788500537,6.4123,155.95,155.91,22.4484]
[1727788501048,6.4119,155.96,155.92,6.4134]
[1727788501550,5.4119,155.96,155.92,6.4134]
[1727788501759,40.7317121,156.0,155.93,6.4131]
[1727788501760,6.4118,155.97,155.93,6.4131]
[1727788501992,16.023,156.03,155.94,6.4126]
[1727788502144,6.4115,155.97,155.93,32.1504]
[1727788502867,6.4124,155.95,155.93,16.1181]
[1727788503175,6.4127,155.94,155.9,22.4494]
[1727788503355,23.776884,155.98,155.9,16.0351]
[1727788503573,6.4126,155.95,155.91,6.4139]
[1727788503863,1.60315699,155.97,155.9,16.0351]
[1727788504033,16.027,155.99,155.9,16.0351]
[1727788504233,6.4124,155.95,155.91,6.4139]
[1727788506246,16.027,155.99,155.91,6.4139]
[1727788506433,6.412,155.96,155.91,6.4139]
[1727788508044,16.0243,156.02,155.92,28.69298009]
[1727788508237,6.4113,155.98,155.94,6.4126]
[1727788508545,6.4113,155.98,155.95,0.93324338]
[1727788509266,6.4113,155.98,155.94,6.4126]
[1727788509562,6.4113,155.98,155.95,1.28221548]
[1727788510359,6.4113,155.98,155.94,6.4126]
[1727788510685,6.4115,155.97,155.93,6.413]
[1727788510956,6.4117,155.97,155.93,6.4131]
[1727788511160,16.0243,156.02,155.94,1.28223434]
[1727788511356,6.4108,155.99,155.95,6.4121]
[1727788511566,6.4102,156.0,155.96,7.34479071]
[1727788511765,6.4099,156.01,155.97,6.4114]
[1727788511953,6.4099,156.01,155.98,1.28196118]
[1727788512462,6.4099,156.01,155.97,6.4114]
[1727788515050,16.0209,156.05,155.98,1.28191228]
[1727788515374,6.4086,156.04,156.0,6.4102]
[1727788515545,6.4086,156.04,155.99,23.71626743]
[1727788516244,6.409,156.03,155.99,23.71626743]
[1727788517364,16.0182,156.08,155.99,23.46646743]
[1727788517541,6.4085,156.05,156.0,6.4101]
[1727788517747,6.4085,156.05,156.01,0.93217228]
[1727788518267,6.4078,156.06,156.01,0.93217228]
[1727788518469,6.4078,156.06,156.02,6.4094]
[1727788518646,6.4078,156.06,156.03,1.28151061]
[1727788518842,16.0182,156.08,156.0,35.09448009]
[1727788518843,6.4085,156.05,156.0,35.09448009]
[1727788519064,6.4083,156.05,156.0,22.4349]
[1727788519269,6.4083,156.05,156.01,6.4096]
[1727788520281,6.4083,156.05,156.0,28.68468009]
[1727788520282,16.0182,156.08,156.0,28.68468009]
[1727788520463,6.4078,156.06,156.02,6.4094]
[1727788520855,6.4082,156.05,156.01,6.4096]
[1727788521371,6.4079,156.06,156.01,6.4096]
[1727788521975,16.015,156.11,156.02,29.9639224]
[1727788522171,6.4072,156.08,156.03,29.06438009]
[1727788522472,16.5911,156.16,156.04,0.93185793]
[1727788522677,6.4062,156.1,156.05,6.4078]
[1727788522974,6.4062,156.1,156.06,1.28090473]
[1727788523366,48.0323,156.15,156.05,6.1774]
[1727788523367,6.407,156.08,156.05,6.1774]
[1727788527764,6.4074,156.07,156.03,22.8137]
[1727788527969,1.60155106,156.12,156.03,16.4048]
[1727788527970,6.4079,156.06,156.03,16.4048]
[1727788528155,6.4074,156.07,156.03,22.8137]
[1727788530469,6.4071,156.08,156.03,22.8137]
[1727788533065,6.4084,156.05,156.03,16.4048]
[1727788533260,1.60170728,156.09,156.03,16.4048]
[1727788533463,6.4079,156.06,156.03,16.4048]
[1727788534393,17.61710141,156.1,156.03,16.4048]
[1727788534687,6.4076,156.07,156.03,16.4048]
[1727788535071,1.60179307,156.09,156.03,16.4048]
[1727788535270,6.4079,156.06,156.03,16.4048]
[1727788539469,6.4086,156.04,156.03,16.4048]
[1727788539664,1.60179307,156.09,156.03,16.4048]
[1727788539869,1.60179307,156.09,156.01,42.2802]
[1727788540168,6.4082,156.05,156.01,48.69]
[1727788540712,6.409,156.03,156.0,20.0]
[1727788540989,23.776884,156.08,156.0,20.0]
[1727788540990,6.4087,156.04,156.0,20.0]
[1727788541189,6.4087,156.04,156.0,26.41]
[1727788543566,1.60198147,156.08,156.0,20.0]
[1727788543780,6.409,156.03,156.0,20.0]
[1727788544083,6.409,156.03,155.99,22.1487]
[1727788545781,6.4089,156.04,156.0,6.4102]
[1727788547094,6.409,156.03,155.99,22.1487]
[1727788549580,6.4094,156.02,155.99,15.7382]
[1727788549889,1.60211871,156.06,155.99,15.7382]
[1727788550095,6.4091,156.03,155.99,22.1487]
[1727788550585,6.4098,156.01,155.98,16.0269]
[1727788552298,6.4098,156.01,155.97,13.0572]
[1727788552503,1.6023187,156.04,155.95,31.3785]
[1727788552799,6.4106,155.99,155.95,37.7905]
[1727788553585,6.411,155.98,155.96,20.0]
[1727788553889,6.4115,155.97,155.93,13.0724]
[1727788554091,16.0248,156.01,155.93,13.0724]
[1727788554299,6.4112,155.98,155.94,6.4124]
[1727788556378,6.4117,155.97,155.93,13.0723]
[1727788557195,6.4119,155.96,155.93,20.0]
[1727788557384,6.4119,155.96,155.92,22.4465]
[1727788559077,6.4119,155.96,155.92,21.4465]
[1727788559698,6.4123,155.95,155.92,15.033]
[1727788560006,6.4124,155.95,155.9,6.4142]
[1727788560301,6.4124,155.95,155.89,22.1738]
[1727788560503,6.4124,155.95,155.91,6.4139]
[1727788560720,32.2801,155.99,155.9,6.4143]
[1727788560721,6.4127,155.94,155.9,6.4143]
[1727788561295,6.4127,155.94,155.89,22.451]
[1727788561489,6.4134,155.93,155.89,22.451]
[1727788562514,16.0289,155.97,155.9,7.69691707]
[1727788562515,6.4128,155.94,155.9,7.69691707]
[1727788562812,15.6746,156.03,155.9,20.48669716]
[1727788562994,6.4113,155.98,155.94,6.4126]
[1727788563193,6.4113,155.98,155.95,1.28225813]
[1727788564084,6.4113,155.98,155.94,1.282258]
[1727788565612,6.411,155.99,155.94,1.282258]
[1727788565989,6.411,155.99,155.95,6.412]
[1727788566701,6.411,155.99,155.94,6.4125]
[1727788568113,6.411,155.98,155.94,6.4125]
[1727788568317,39.801684,156.01,155.93,16.0325]
[1727788568609,6.4123,155.95,155.91,6.4138]
[1727788568810,1.60288605,156.0,155.9,22.4494]
[1727788568811,6.4127,155.94,155.9,22.4494]
[1727788569001,1.60318412,155.97,155.9,16.0352]
[1727788569186,6.4132,155.93,155.9,16.0352]
[1727788569390,6.4137,155.92,155.88,21.8967]
[1727788569590,6.4141,155.91,155.88,15.4816]
[1727788569815,6.4141,155.91,155.87,22.4537]
[1727788570196,6.4136,155.92,155.87,22.4537]
[1727788570613,6.4136,155.92,155.88,6.415]
[1727788573518,6.4142,155.91,155.87,16.0383]
[1727788573708,6.4136,155.92,155.87,22.4538]
[1727788574199,1.60337293,155.94,155.87,16.0383]
[1727788574200,6.4142,155.91,155.87,16.0383]
[1727788574393,1.60337293,155.94,155.86,6.4159]
[1727788574623,6.4145,155.9,155.86,6.4159]
[1727788574917,6.4145,155.9,155.85,26.4162]
[1727788575093,6.4145,155.9,155.86,6.416]
[1727788577922,6.4148,155.89,155.85,6.4163]
[1727788578516,6.4143,155.9,155.85,6.4163]
[1727788579014,1.60358587,155.93,155.85,6.4163]
[1727788579324,6.4148,155.89,155.85,6.4163]
[1727788581919,6.4148,155.89,155.84,22.4582]
[1727788582222,6.4148,155.89,155.85,6.4163]
[1727788583420,31.1525,155.93,155.86,7.69885052]
[1727788583715,6.4142,155.91,155.86,7.69885052]
[1727788584920,31.1525,155.93,155.86,7.69885052]
[1727788585222,6.4144,155.9,155.86,7.69885052]
[1727788587622,6.4144,155.9,155.86,6.4159]
[1727788588120,1.60356905,155.92,155.85,6.4163]
[1727788588416,6.4148,155.89,155.85,6.4163]
[1727788589923,6.4144,155.9,155.86,7.69885168]
[1727788590220,6.414,155.91,155.86,7.69885168]
[1727788590621,6.414,155.91,155.87,6.4155]
[1727788590805,6.414,155.91,155.88,1.28282782]
[1727788591004,6.636,155.94,155.88,7.69762782]
[1727788591312,6.4128,155.94,155.9,6.4143]
[1727788591615,1.60325711,155.93,155.86,20.0]
[1727788591817,15.2683,155.97,155.86,26.4159]
[1727788591818,6.4143,155.9,155.86,26.4159]
[1727788593322,6.4143,155.9,155.86,6.4159]
[1727788593920,6.4143,155.9,155.85,31.8864]
[1727788593921,6.4152,155.88,155.85,16.0404]
[1727788594122,6.4148,155.89,155.86,1.28299963]
[1727788594429,6.4148,155.89,155.85,16.0404]
[1727788594734,6.4156,155.87,155.83,6.4171]
[1727788595235,1.60373716,155.91,155.82,16.0434]
[1727788595236,23.776884,155.9,155.82,16.0434]
[1727788595433,6.4163,155.86,155.82,16.0434]
[1727788595625,6.4181,155.81,155.77,16.4953]
[1727788595805,6.4179,155.82,155.77,22.9149]
[1727788596000,6.4181,155.81,155.77,16.4953]
[1727788596224,6.4176,155.82,155.77,22.915]
[1727788596611,41.42304501,155.85,155.76,16.0496]
[1727788596816,6.4185,155.8,155.76,16.0496]
[1727788597018,6.4189,155.79,155.75,6.4202]
[1727788597223,41.42304501,155.85,155.73,31.8837]
[1727788597413,41.42304501,155.85,155.74,6.4209]
[1727788597414,6.4193,155.78,155.74,6.4209]
[1727788597727,41.42304501,155.85,155.73,15.8307]
[1727788597728,6.4205,155.75,155.73,15.8307]
[1727788597912,6.4198,155.77,155.72,7.2662618]
[1727788598111,32.0872,155.83,155.72,0.8445618]
[1727788598309,1.60491399,155.82,155.72,0.8445618]
[1727788598528,6.4197,155.77,155.72,7.2662618]
[1727788599024,6.4197,155.77,155.73,1.284017]
[1727788599334,6.4197,155.77,155.72,0.8445618]
[1727788600020,23.776884,155.82,155.72,7.2662618]
[1727788600227,6.4193,155.78,155.72,0.8445618]
[1727788600436,6.4193,155.78,155.73,6.4212]
[1727788600930,15.915,155.86,155.76,16.0502]
[1727788601272,6.4181,155.81,155.76,16.0502]
[1727788601536,6.4189,155.79,155.73,20.0]
[1727788601909,6.4185,155.8,155.75,6.4204]
[1727788603309,23.776884,155.84,155.73,20.0]
[1727788603612,6.4172,155.83,155.78,6.4192]
[1727788603825,6.4177,155.82,155.77,6.4196]
[1727788604408,6.4173,155.83,155.78,6.4192]
[1727788604624,6.4173,155.83,155.78,7.70287843]
[1727788604831,6.4173,155.83,155.78,6.4192]
[1727788605032,6.4176,155.82,155.78,6.4192]
[1727788605339,6.4176,155.82,155.79,1.2836374]
[1727788605513,6.4176,155.82,155.78,6.4192]
[1727788606140,31.9559,155.86,155.76,15.6534]
[1727788606305,6.4172,155.83,155.78,22.4674]
[1727788607138,6.4176,155.82,155.78,16.0482]
[1727788612536,6.4183,155.81,155.76,22.0734]
[1727788613026,6.4183,155.81,155.77,6.4194]
[1727788613827,6.4183,155.81,155.76,15.6534]
[1727788614031,6.4186,155.8,155.76,22.0734]
[1727788617218,1.60460425,155.83,155.76,15.6534]
[1727788617418,6.4181,155.81,155.77,6.4196]
[1727788618026,6.4173,155.83,155.78,7.70287891]
[1727788618315,6.4173,155.83,155.79,6.4187]
[1727788618846,53.7638,155.91,155.77,6.4987]
[1727788619016,6.4169,155.84,155.8,6.4183]
[1727788619222,6.4169,155.84,155.79,22.4655]
[1727788619410,16.0376,155.89,155.79,22.4655]
[1727788619725,6.4173,155.83,155.79,22.4655]
[1727788620331,6.4173,155.83,155.79,16.0468]
[1727788621133,16.0393,155.87,155.79,16.0468]
[1727788621325,16.0393,155.87,155.8,7.3538443]
[1727788621326,6.4169,155.84,155.8,7.3538443]
[1727788621524,6.4169,155.84,155.8,6.4181]
[1727788621730,6.4172,155.83,155.79,22.4655]
[1727788622235,6.4172,155.83,155.79,16.0468]
[1727788623223,6.4176,155.82,155.79,16.0468]
[1727788623617,6.4176,155.82,155.78,6.4191]
[1727788624060,17.64569376,155.85,155.77,6.4987]
[1727788624343,6.4185,155.8,155.76,38.123]
[1727788625237,1.60465233,155.8,155.76,15.6534]
[1727788625449,6.4197,155.77,155.73,28.8744]
[1727788626316,6.4202,155.76,155.72,17.3147618]
[1727788627540,6.4205,155.75,155.72,17.3147618]
[1727788627743,23.776884,155.79,155.72,17.3147618]
[1727788628047,6.4202,155.76,155.72,17.3147618]
[1727788630048,6.4202,155.76,155.72,23.7362618]
[1727788630345,6.4209,155.74,155.72,0.8445618]
[1727788630547,16.2499,155.78,155.72,0.8445618]
[1727788630548,6.4206,155.75,155.72,0.8445618]
[1727788631049,23.776884,155.79,155.72,0.8445618]
[1727788631350,6.4192,155.79,155.73,1.28423295]
[1727788631531,6.4192,155.79,155.72,16.8984618]
[1727788631733,6.4192,155.79,155.74,6.4206]
[1727788632240,6.4185,155.8,155.75,1.28395134]
[1727788632443,15.1407,155.82,155.75,1.28395134]
[1727788632444,6.4177,155.82,155.75,1.28395134]
[1727788632649,6.4177,155.82,155.77,6.4196]
[1727788632948,6.4177,155.82,155.78,1.28369024]
[1727788633255,16.3497,155.86,155.79,6.4188]
[1727788633454,16.0384,155.88,155.8,6.4183]
[1727788633755,6.417,155.84,155.8,22.464]
[1727788633943,6.417,155.84,155.8,16.0457]
[1727788634339,6.417,155.84,155.8,22.4641]
[1727788634835,6.417,155.84,155.8,16.0457]
[1727788635243,6.4172,155.83,155.8,16.0457]
[1727788635435,6.4172,155.83,155.78,22.4719]
[1727788635759,6.4182,155.81,155.78,16.0527]
[1727788635956,6.4186,155.8,155.76,13.0347]
[1727788636142,6.4197,155.77,155.76,6.6149]
[1727788636351,6.4186,155.8,155.76,6.6149]
[1727788636757,6.418,155.82,155.77,1.28373796]
[1727788637051,6.4181,155.81,155.76,29.0848]
[1727788637831,6.4189,155.79,155.76,6.6149]
[1727788638058,6.4194,155.78,155.74,22.8244]
[1727788638279,6.419,155.79,155.75,1.28386862]
[1727788638463,6.419,155.79,155.74,22.8244]
[1727788638950,6.419,155.79,155.74,16.4038]
[1727788639162,23.776884,155.83,155.75,1.28382561]
[1727788639337,6.4177,155.82,155.75,1.28382561]
[1727788639660,6.4177,155.82,155.75,21.28382561]
[1727788639840,6.4177,155.82,155.77,22.4683]
[1727788640034,6.4177,155.82,155.78,1.28371805]
[1727788640237,23.776884,155.86,155.78,1.28371805]
[1727788640435,6.4181,155.81,155.78,1.28371805]
[1727788641541,6.4173,155.83,155.78,7.70261805]
[1727788642245,6.4173,155.83,155.78,6.4189]
[1727788642449,6.4173,155.83,155.79,1.28349581]
[1727788642648,6.4173,155.83,155.78,6.4189]
[1727788644443,6.4176,155.82,155.77,22.4682]
[1727788645341,6.4176,155.82,155.78,6.4192]
[1727788647265,6.4173,155.83,155.79,1.28350409]
[1727788647451,6.4169,155.84,155.79,7.56340409]
[1727788647769,6.4169,155.84,155.79,12.6987]
[1727788648268,6.4173,155.83,155.79,12.6987]
[1727788648566,6.4177,155.82,155.79,6.2799]
[1727788648942,6.4177,155.82,155.8,1.28349115]
[1727788649763,6.4177,155.82,155.79,6.2799]
[1727788649951,23.776884,155.84,155.76,6.4199]
[1727788650142,6.4189,155.79,155.75,6.5236]
[1727788650345,6.4194,155.78,155.75,6.5236]
[1727788650569,6.4194,155.78,155.76,1.28385849]
[1727788651751,6.4188,155.8,155.77,1.28385724]
[1727788653062,6.4189,155.79,155.75,12.9441]
[1727788653769,6.4189,155.79,155.75,6.5236]
[1727788654874,6.4181,155.81,155.77,6.4194]
[1727788655105,6.4184,155.8,155.76,22.4697]
[1727788655571,6.419,155.79,155.75,6.5236]
[1727788655750,6.4193,155.78,155.75,6.5236]
[1727788655948,17.6470451,155.84,155.74,22.8243]
[1727788655949,6.4197,155.77,155.74,16.4038]
[1727788657362,6.4201,155.76,155.74,16.4038]
[1727788657754,6.4205,155.75,155.72,0.8445618]
[1727788658578,6.4202,155.76,155.73,1.28412903]
[1727788658764,23.776884,155.79,155.72,7.2659618]
[1727788658966,6.4197,155.77,155.73,1.28401329]
[1727788659171,6.4197,155.77,155.73,7.70521329]
[1727788659367,6.4194,155.78,155.74,7.70469855]
[1727788659669,6.4193,155.78,155.74,6.4208]
[1727788659984,6.4193,155.78,155.73,6.4212]
[1727788660457,6.4193,155.78,155.74,7.70446674]
[1727788661674,6.419,155.79,155.74,7.70446674]
[1727788661975,6.4193,155.78,155.74,6.4206]
[1727788663282,6.4193,155.78,155.75,1.28385773]
[1727788664184,6.4193,155.78,155.74,6.4206]
[1727788664473,1.6048226,155.81,155.73,6.4212]
[1727788664778,6.4197,155.77,155.73,6.4212]
[1727788665479,15.4184,155.84,155.73,6.4212]
[1727788665480,16.0402,155.86,155.75,6.0017]
[1727788665681,16.0402,155.86,155.77,20.0]
[1727788665973,6.4175,155.83,155.78,22.4671]
[1727788666976,6.4177,155.82,155.78,22.4671]
[1727788667798,6.4181,155.81,155.78,16.0479]
[1727788668183,1.60432495,155.85,155.78,16.0479]
[1727788668474,6.4178,155.82,155.78,16.0479]
[1727788668867,6.4178,155.82,155.78,22.4671]
[1727788669267,6.4172,155.83,155.79,6.4188]
[1727788670678,6.4172,155.83,155.78,22.467]
[1727788673762,6.4177,155.82,155.78,22.467]
[1727788681370,1.60434472,155.85,155.75,6.0017]
[1727788681371,23.776884,155.84,155.75,6.0017]
[1727788681566,6.4185,155.8,155.76,6.4198]
[1727788681879,6.4189,155.79,155.75,28.4727]
[1727788682377,16.0443,155.82,155.74,15.0239]
[1727788682560,6.4199,155.77,155.74,15.0239]
[1727788682764,1.60481923,155.81,155.72,23.3198618]
[1727788682765,6.4202,155.76,155.72,23.3198618]
[1727788687488,6.4206,155.75,155.72,0.8445618]
[1727788688081,6.4209,155.74,155.72,2.12873798]
[1727788689170,6.4206,155.75,155.72,0.8445618]
[1727788689691,6.4198,155.77,155.73,1.2841749]
[1727788689865,6.4198,155.77,155.73,7.7053749]
[1727788690065,15.8652,155.84,155.75,6.4204]
[1727788690066,6.4192,155.79,155.75,6.4204]
[1727788690287,6.4192,155.79,155.76,1.28379927]
[1727788690476,6.4186,155.8,155.76,7.70379927]
[1727788691683,6.419,155.79,155.75,6.4204]
[1727788691991,6.4194,155.78,155.74,20.0]
[1727788692224,6.4198,155.77,155.74,20.0]
[1727788692374,6.4201,155.76,155.72,7.2662618]
[1727788692777,16.0478,155.79,155.72,0.8445618]
[1727788692989,6.4212,155.74,155.72,0.8445618]
[1727788694302,1.60522357,155.78,155.72,0.8445618]
[1727788694590,6.4213,155.73,155.72,0.8445618]
[1727788700387,30.198184,155.73,155.72,0.8445618]
[1727788703285,6.4213,155.73,155.72,0.8445618]
[1727788709511,6.4209,155.74,155.72,0.8445618]
[1727788709695,6.5236,155.79,155.72,0.8445618]
[1727788709889,6.4212,155.74,155.72,0.8445618]
[1727788710086,6.4199,155.77,155.72,0.8445618]
[1727788710309,6.4204,155.76,155.72,0.8445618]
[1727788710683,6.4204,155.76,155.72,7.2661618]
[1727788710907,6.4198,155.77,155.72,7.2661618]
[1727788711102,6.4198,155.77,155.72,22.9328618]
[1727788711304,16.1025,155.82,155.73,1.28405493]
[1727788711498,6.4193,155.78,155.74,6.4209]
[1727788711691,6.4193,155.78,155.73,7.70535493]
[1727788712292,6.4185,155.8,155.72,32.5649618]
[1727788712496,6.4181,155.81,155.74,17.33561826]
[1727788712791,6.4181,155.81,155.76,6.4197]
[1727788713505,6.4181,155.81,155.77,7.70332213]
[1727788713694,6.4173,155.83,155.78,1.28365562]
[1727788713896,6.4173,155.83,155.78,7.70255562]
[1727788714211,6.4173,155.83,155.77,15.0753]
[1727788714417,8.0221289,155.82,155.77,15.0753]
[1727788714584,6.4177,155.82,155.77,15.0753]
[1727788715121,6.4181,155.81,155.77,15.0753]
[1727788715496,1.60454812,155.85,155.77,21.4949]
[1727788715709,6.4177,155.82,155.77,21.4949]
[1727788717909,6.4177,155.82,155.78,1.28358069]
[1727788718103,6.4177,155.82,155.77,21.4949]
[1727788718898,6.418,155.81,155.77,21.4949]
[1727788719213,6.4189,155.79,155.77,15.0753]
[1727788719423,6.4197,155.77,155.73,32.3594]
[1727788719594,6.4197,155.77,155.73,38.7807]
[1727788720111,1.60496893,155.81,155.73,38.7807]
[1727788720112,23.776884,155.8,155.73,38.7807]
[1727788720317,6.4194,155.78,155.73,38.7807]
[1727788720501,23.776884,155.82,155.74,1.28385345]
[1727788720692,6.4183,155.81,155.76,6.4198]
[1727788721623,6.4183,155.81,155.77,6.4196]
[1727788722123,6.4177,155.82,155.78,7.70289599]
[1727788722319,6.4177,155.82,155.77,22.1658]
[1727788722496,6.4177,155.82,155.77,28.5855]
[1727788723518,1.6044962,155.84,155.77,28.5855]
[1727788723709,6.418,155.81,155.77,28.5855]
[1727788724196,6.4179,155.82,155.77,28.5855]
[1727788727097,6.4179,155.82,155.77,22.1658]
[1727788727416,1.60462503,155.81,155.75,20.0]
[1727788727595,23.776884,155.8,155.73,22.52]
[1727788727801,6.4198,155.77,155.73,22.52]
[1727788728016,6.4203,155.76,155.73,22.52]
[1727788728718,23.776884,155.8,155.73,28.9413]
[1727788728719,6.4198,155.77,155.73,28.9413]
[1727788728907,6.4198,155.77,155.74,1.28395898]
[1727788730015,6.4194,155.78,155.74,1.28395898]
[1727788730807,6.4194,155.78,155.74,7.70485898]
[1727788731007,6.4194,155.78,155.74,6.4209]
[1727788731416,6.4198,155.77,155.73,44.9941]
[1727788731910,6.4198,155.77,155.73,38.5728]
[1727788732920,1.60475975,155.8,155.73,22.52]
[1727788733096,23.776884,155.78,155.73,16.3066]
[1727788733421,23.776884,155.78,155.72,0.8445618]
[1727788733422,6.4213,155.73,155.72,0.8445618]
[1727788742130,30.198184,155.73,155.72,0.8445618]
[1727788743920,6.4213,155.73,155.72,0.8445618]
[1727788749833,30.198184,155.73,155.72,0.8445618]
[1727788751637,6.4213,155.73,155.72,0.8445618]
[1727788751948,6.4213,155.73,155.65,35.35540845]
[1727788751949,6.4242,155.66,155.65,22.659]
[1727788752238,6.4231,155.69,155.65,22.659]
[1727788752535,6.4231,155.69,155.66,1.2846513]
[1727788752839,6.4226,155.7,155.66,7.7088513]
[1727788753137,6.4222,155.71,155.66,6.4242]
[1727788753717,6.4222,155.71,155.65,22.659]
[1727788753917,6.4222,155.71,155.65,29.0835]
[1727788754274,6.4222,155.71,155.66,6.424]
[1727788754747,6.4227,155.7,155.65,22.659]
[1727788754917,6.4227,155.7,155.66,1.28461792]
[1727788755333,16.0528,155.74,155.66,7.70871792]
[1727788755528,6.4221,155.72,155.66,7.70871792]
[1727788755742,6.4222,155.71,155.66,6.4241]
[1727788755944,23.776884,155.74,155.65,38.7198]
[1727788756133,6.423,155.69,155.65,38.7198]
[1727788757242,6.423,155.69,155.66,1.28465069]
[1727788757757,6.423,155.69,155.65,38.7198]
[1727788758143,6.4226,155.7,155.65,45.1443]
[1727788761552,6.423,155.69,155.65,45.1443]
[1727788761932,6.4234,155.68,155.65,38.7198]
[1727788762131,6.4234,155.68,155.65,22.659]
[1727788763234,16.054,155.73,155.65,22.659]